fUST/lending_fUST_20250901
["ID","MTS","AMOUNT","RATE_DAILY","PERIOD"]
[382524823,1756657126963,480.0,0.00017251,2]
[382524824,1756657130644,1241.05,0.00017251,2]
[382524825,1756657131905,480.0,0.00017251,2]
[382524826,1756657134927,1040.93,0.00017251,2]
[382524827,1756657134960,828.28,0.00017251,2]
[382524828,1756657135562,10000.0,0.00016304,2]
[382524829,1756657135635,1471.99,0.00017251,2]
[382524830,1756657136608,1448.86,0.00017251,2]
[382524831,1756657137227,480.0,0.00017251,2]
[382524832,1756657143688,300.0,0.00017251,2]
[382524833,1756657144045,480.0,0.0001725,2]
[382524834,1756657145501,687.22,0.00017251,2]
[382524835,1756657151452,924.77,0.00017251,2]
[382524836,1756657156002,6897.97,0.00017251,2]
[382524837,1756657157962,480.0,0.00017251,2]
[382524838,1756657159100,480.0,0.00017251,2]
[382524839,1756657159531,571.26,0.00017251,2]
[382524840,1756657161774,480.0,0.00017251,2]
[382524841,1756657161864,480.0,0.0001725,2]
[382524842,1756657162803,654.49,0.00017251,2]
[382524843,1756657166810,504.37,0.00017251,2]
[382524844,1756657168334,1026.53,0.0001725,2]
[382524845,1756657169220,1024.86,0.00017251,2]
[382524846,1756657169551,480.0,0.00017251,2]
[382524847,1756657169947,734.92,0.00017251,2]
[382524848,1756657170050,901.21,0.00017251,2]
[382524849,1756657170524,7201.34,0.00017251,2]
[382524850,1756657171635,719.82,0.00017251,2]
[382524851,1756657172228,1878.62,0.00017251,2]
[382524852,1756657173270,1450.5,0.00017251,2]
[382524853,1756657175735,480.0,0.00017251,2]
[382524854,1756657178088,636.43,0.00017251,2]
[382524855,1756657180373,679.98,0.0001725,2]
[382524856,1756657181719,634.66,0.00017251,2]
[382524857,1756657184623,763.23,0.00017251,2]
[382524858,1756657184955,3335.47,0.00017251,2]
[382524859,1756657186785,480.0,0.00017251,2]
[382524860,1756657187125,1050.24,0.00017251,2]
[382524861,1756657188058,608.79,0.00017251,2]
[382524862,1756657189075,781.05,0.00017251,2]
[382524863,1756657189388,480.0,0.00017251,2]
[382524864,1756657190414,480.0,0.00017251,2]
[382524865,1756657190469,480.0,0.00017251,2]
[382524866,1756657192985,540.42,0.00017251,2]
[382524867,1756657193955,1000.0,0.00017251,2]
[382524868,1756657196803,480.0,0.00017251,2]
[382524869,1756657198459,480.0,0.0001725,2]
[382524870,1756657200525,480.0,0.00017251,2]
[382524871,1756657201563,544.78,0.00017251,2]
[382524872,1756657202386,300.0,0.00017251,2]
[382524873,1756657202482,1283.8,0.00017251,2]
[382524874,1756657204216,1200.0,0.00017251,2]
[382524875,1756657204793,1405.38,0.00017251,2]
[382524876,1756657207291,480.0,0.00017251,2]
[382524877,1756657208492,813.54,0.00017251,2]
[382524878,1756657210255,480.0,0.0001725,2]
[382524879,1756657210353,480.0,0.00017251,2]
[382524880,1756657212141,480.0,0.00017251,2]
[382524881,1756657214144,480.0,0.00017251,2]
[382524882,1756657214638,385.09346059,0.00017251,2]
[382524883,1756657219095,553.41,0.00017251,2]
[382524884,1756657220464,480.0,0.00017251,2]
[382524885,1756657220716,480.0,0.00017251,2]
[382524886,1756657222002,920.8,0.00017251,2]
[382524887,1756657222943,480.0,0.00017251,2]
[382524888,1756657224474,1461.14,0.00017251,2]
[382524889,1756657225634,480.0,0.00017251,2]
[382524890,1756657227582,353.19770667,0.00017251,2]
[382524891,1756657228598,1002.33,0.00017251,2]
[382524892,1756657229318,480.0,0.00017251,2]
[382524893,1756657229571,480.0,0.00017251,2]
[382524894,1756657231321,480.0,0.0001725,2]
[382524895,1756657233122,806.79,0.00017251,2]
[382524896,1756657237399,480.0,0.00017251,2]
[382524897,1756657238049,1534.5,0.00017251,2]
[382524898,1756657240318,480.0,0.00017251,2]
[382524899,1756657240947,715.13,0.00017251,2]
[382524900,1756657240984,1002.41,0.0001725,2]
[382524901,1756657242492,597.8,0.00017251,2]
[382524902,1756657243318,562.11745179,0.00017251,2]
[382524903,1756657245028,480.0,0.00017251,2]
[382524904,1756657246898,480.0,0.00017251,2]
[382524905,1756657249212,719.46,0.00017251,2]
[382524907,1756657250482,1766.75,0.0001725,2]
[382524908,1756657250516,817.13,0.00017251,2]
[382524909,1756657251234,480.0,0.00017251,2]
[382524910,1756657255373,480.0,0.00017251,2]
[382524911,1756657255908,1151.465775,0.00013699,2]
[382524912,1756657256669,480.0,0.00017251,2]
[382524913,1756657256765,480.0,0.00017251,2]
[382524914,1756657257598,930.98,0.00017251,2]
[382524915,1756657258861,1778.43,0.00017251,2]
[382524916,1756657259034,480.0,0.0001725,2]
[382524917,1756657261057,2086.3,0.00017251,2]
[382524918,1756657262127,480.0,0.00017251,2]
[382524919,1756657263733,300.0,0.00017251,2]
[382524920,1756657267985,480.0,0.00017251,2]
[382524921,1756657268398,480.0,0.00017251,2]
[382524922,1756657270275,1306.82,0.00017251,2]
[382524923,1756657270474,480.0,0.00017251,2]
[382524924,1756657273679,2329.12,0.00017251,2]
[382524925,1756657275912,3254.52,0.00017251,2]
[382524926,1756657279967,788.92,0.00017251,2]
[382524927,1756657280841,480.0,0.00017251,2]
[382524928,1756657281745,673.76,0.00017251,2]
[382524929,1756657282001,916.68,0.00017251,2]
[382524930,1756657282479,480.0,0.00017251,2]
[382524931,1756657282532,480.0,0.00017251,2]
[382524932,1756657284171,519.76,0.00017251,2]
[382524933,1756657286983,505.61,0.0001725,2]
[382524934,1756657287027,636.2,0.00017251,2]
[382524935,1756657287927,480.0,0.00017251,2]
[382524936,1756657288249,4958.48,0.00017251,2]
[382524937,1756657288284,480.0,0.00017251,2]
[382524938,1756657290670,895.69,0.00017251,2]
[382524939,1756657290868,480.0,0.00017251,2]
[382524940,1756657291291,8563.66,0.00017251,2]
[382524941,1756657291843,480.0,0.00017251,2]
[382524942,1756657292792,480.0,0.00017251,2]
[382524943,1756657294616,1579.57,0.00017251,2]
[382524944,1756657295187,572.73,0.00017251,2]
[382524945,1756657297209,1206.47,0.00017251,2]
[382524946,1756657297816,480.0,0.00017251,2]
[382524947,1756657299174,2864.09,0.00017251,2]
[382524948,1756657303849,480.0,0.00017251,2]
[382524949,1756657304318,730.21,0.00017251,2]
[382524950,1756657306232,480.0,0.00017251,2]
[382524951,1756657307267,480.0,0.00017251,2]
[382524952,1756657307709,493.46,0.0001725,2]
[382524953,1756657307882,480.0,0.00017251,2]
[382524954,1756657309936,843.85,0.00017251,2]
[382524955,1756657310771,1215.99,0.00017251,2]
[382524956,1756657312262,1868.85,0.00017251,2]
[382524957,1756657312810,480.0,0.00017251,2]
[382524958,1756657312874,1757.81,0.00017251,2]
[382524959,1756657313183,480.0,0.00017251,2]
[382524960,1756657313914,480.0,0.00017251,2]
[382524961,1756657315831,489.45,0.0001725,2]
[382524962,1756657316510,704.81,0.00017251,2]
[382524963,1756657321134,480.0,0.0001725,2]
[382524964,1756657321180,626.04,0.00017251,2]
[382524965,1756657321381,311.74815497,0.00017152,2]
[382524966,1756657321415,480.0,0.00017251,2]
[382524967,1756657322474,1454.86,0.00017251,2]
[382524968,1756657322805,300.0,0.00017251,2]
[382524969,1756657323415,480.0,0.00017251,2]
[382524970,1756657323947,480.0,0.0001725,2]
[382524971,1756657324423,745.47,0.0001725,2]
[382524972,1756657325934,480.0,0.00017251,2]
[382524973,1756657326945,500.0,0.00017251,2]
[382524974,1756657327711,1004.82,0.00017251,2]
[382524975,1756657331679,1694.45,0.00017251,2]
[382524976,1756657332352,2948.99,0.00017251,2]
[382524977,1756657333240,566.35,0.00017251,2]
[382524978,1756657333294,831.25,0.00017251,2]
[382524979,1756657335403,480.0,0.00017251,2]
[382524980,1756657336619,483.00033591,0.00017251,2]
[382524981,1756657337907,480.0,0.00017251,2]
[382524982,1756657340155,480.0,0.00017251,2]
[382524983,1756657340547,480.0,0.00017251,2]
[382524984,1756657341974,480.0,0.00017251,2]
[382524985,1756657342938,695.75,0.00017251,2]
[382524986,1756657343271,480.0,0.00017251,2]
[382524987,1756657343396,436.19576782,0.00017251,2]
[382524988,1756657343567,480.0,0.00017251,2]
[382524989,1756657343600,925.83,0.00017251,2]
[382524990,1756657345330,1972.74,0.00017251,2]
[382524991,1756657345541,481.98,0.0001725,2]
[382524992,1756657345590,480.0,0.00017251,2]
[382524993,1756657346870,1410.65,0.00017251,2]
[382524994,1756657348680,480.0,0.00017251,2]
[382524995,1756657349023,622.54,0.00017251,2]
[382524996,1756657351488,844.26,0.0001725,2]
[382524997,1756657351735,580.61,0.00017251,2]
[382524998,1756657352034,151.0,0.00027397,120]
[382524999,1756657352463,549.93,0.00017251,2]
[382525000,1756657357686,480.0,0.00017251,2]
[382525001,1756657360219,480.0,0.00017251,2]
[382525002,1756657360337,243.52077592,0.00017251,2]
[382525003,1756657361392,605.80674268,0.00017154,2]
[382525004,1756657361447,480.0,0.00017251,2]
[382525005,1756657362040,480.0,0.00017251,2]
[382525006,1756657362128,480.0,0.00017251,2]
[382525007,1756657362462,2621.19,0.00017251,2]
[382525008,1756657363031,513.99,0.00017251,2]
[382525009,1756657363713,480.0,0.00017251,2]
[382525010,1756657363746,480.0,0.00017251,2]
[382525011,1756657365787,644.35,0.00017251,2]
[382525012,1756657368373,6601.22,0.00017251,2]
[382525013,1756657368841,480.0,0.0001725,2]
[382525014,1756657368901,500.0,0.00017251,2]
[382525015,1756657368952,6610.56,0.00017251,2]
[382525016,1756657369404,790.41,0.00017251,2]
[382525017,1756657370705,1195.69,0.00017251,2]
[382525018,1756657372726,1905.95,0.00017251,2]
[382525019,1756657373030,1349.31,0.00017251,2]
[382525020,1756657374762,480.0,0.00017251,2]
[382525021,1756657374921,480.0,0.00017251,2]
[382525022,1756657378297,480.0,0.00017251,2]
[382525023,1756657379628,397.86534123,0.00017251,2]
[382525024,1756657383792,300.0,0.00017251,2]
[382525025,1756657385753,480.0,0.00017251,2]
[382525026,1756657388754,480.0,0.00017251,2]
[382525027,1756657388888,480.0,0.00017251,2]
[382525028,1756657388980,480.0,0.00017251,2]
[382525029,1756657389986,428.97703578,0.00017251,2]
[382525030,1756657390777,595.28633407,0.00017251,2]
[382525031,1756657391003,480.0,0.00017251,2]
[382525032,1756657393448,274.17,0.00017251,2]
[382525033,1756657394038,1533.18,0.00017251,2]
[382525034,1756657394952,815.56,0.00017251,2]
[382525035,1756657394986,480.0,0.00017251,2]
[382525036,1756657396128,480.0,0.0001725,2]
[382525037,1756657396164,1320.11,0.00017251,2]
[382525038,1756657396248,1800.35,0.00017251,2]
[382525039,1756657396403,480.0,0.00017251,2]
[382525040,1756657396454,482.84,0.00017251,2]
[382525041,1756657398202,480.0,0.00017251,2]
[382525042,1756657398459,838.05,0.0001725,2]
[382525043,1756657400006,618.4,0.00017251,2]
[382525044,1756657401223,480.0,0.00017251,2]
[382525045,1756657403924,2530.97,0.00017251,2]
[382525046,1756657404313,480.0,0.00017251,2]
[382525047,1756657404350,1121.2,0.00017251,2]
[382525048,1756657406352,3196.49,0.00017251,2]
[382525049,1756657406790,500.0,0.00017251,2]
[382525050,1756657407052,500.0,0.00017251,2]
[382525051,1756657407305,500.0,0.00017251,2]
[382525052,1756657408819,1315.24,0.00017251,2]
[382525053,1756657409020,697.59,0.00017251,2]
[382525054,1756657409715,480.0,0.00017251,2]
[382525055,1756657409776,480.0,0.00017251,2]
[382525056,1756657411253,1048.16,0.00017251,2]
[382525057,1756657412585,480.0,0.00017251,2]
[382525058,1756657413160,572.27,0.00017251,2]
[382525059,1756657415861,1080.38,0.0001725,2]
[382525060,1756657416083,480.0,0.00017251,2]
[382525061,1756657416127,480.0,0.00017251,2]
[382525062,1756657417326,480.0,0.00017251,2]
[382525063,1756657417734,480.0,0.00017251,2]
[382525064,1756657418370,480.0,0.00017251,2]
[382525065,1756657420581,1083.69,0.00017251,2]
[382525066,1756657420858,480.0,0.00017251,2]
[382525067,1756657421847,1286.27,0.00017251,2]
[382525068,1756657422934,480.0,0.00017251,2]
[382525069,1756657423573,480.0,0.00017251,2]
[382525070,1756657424223,1256.77,0.0001725,2]
[382525071,1756657426038,480.0,0.00017251,2]
[382525072,1756657427272,631.02,0.00017251,2]
[382525073,1756657427305,1280.39,0.00017251,2]
[382525074,1756657430772,480.0,0.00017251,2]
[382525075,1756657432164,849.03,0.00017251,2]
[382525076,1756657434146,480.0,0.00017251,2]
[382525077,1756657436816,480.0,0.00017251,2]
[382525078,1756657438904,892.29,0.00017251,2]
[382525079,1756657440566,1082.04,0.00017251,2]
[382525080,1756657441521,480.0,0.00017251,2]
[382525081,1756657441670,480.0,0.00017251,2]
[382525082,1756657443032,300.0,0.00017251,2]
[382525083,1756657444394,480.0,0.00017251,2]
[382525084,1756657445282,867.24,0.00017251,2]
[382525085,1756657446339,480.0,0.00017251,2]
[382525086,1756657447580,1542.94,0.00017251,2]
[382525087,1756657448436,698.4,0.00017251,2]
[382525088,1756657472955,952.23,0.00017251,2]
[382525089,1756657483750,712.42,0.00017251,2]
[382525090,1756657487647,1566.03,0.00017251,2]
[382525091,1756657487876,835.83,0.00017251,2]
[382525092,1756657490791,1704.32,0.00017251,2]
[382525093,1756657494664,480.0,0.00017251,2]
[382525094,1756657495032,1334.57,0.00017251,2]
[382525095,1756657495223,3458.85,0.00017251,2]
[382525096,1756657496146,480.0,0.00017251,2]
[382525097,1756657497403,480.0,0.00017251,2]
[382525098,1756657499766,480.0,0.00017251,2]
[382525099,1756657502379,300.0,0.0001725,2]
[382525100,1756657502821,500.0,0.00017251,2]
[382525101,1756657503194,480.0,0.00017251,2]
[382525102,1756657504297,480.0,0.00017251,2]
[382525103,1756657504623,988.0,0.0001725,2]
[382525104,1756657505050,480.0,0.00017251,2]
[382525105,1756657505276,1378.19,0.00017251,2]
[382525106,1756657506184,865.01,0.00017251,2]
[382525109,1756657509151,480.0,0.00017251,2]
[382525110,1756657509422,1005.83,0.00017251,2]
[382525111,1756657509586,878.37,0.00017251,2]
[382525112,1756657511707,272.77963559,0.00017151,2]
[382525113,1756657513526,1090.16,0.00017251,2]
[382525114,1756657514096,480.0,0.00017251,2]
[382525115,1756657514675,723.36,0.00017251,2]
[382525116,1756657514828,480.0,0.00017251,2]
[382525117,1756657518215,1521.82,0.00017251,2]
[382525118,1756657520141,1500.78,0.00017251,2]
[382525119,1756657521004,481.182224,0.00017251,2]
[382525120,1756657523134,3032.69,0.00017251,2]
[382525121,1756657527085,480.0,0.00017251,2]
[382525122,1756657527184,572.89,0.00017251,2]
[382525123,1756657528464,502.92,0.00017251,2]
[382525124,1756657529196,480.0,0.00017251,2]
[382525125,1756657529247,536.22,0.00017251,2]
[382525126,1756657529383,506.47,0.00017251,2]
[382525127,1756657530551,480.0,0.0001725,2]
[382525128,1756657531234,480.0,0.00017251,2]
[382525129,1756657534111,1257.59,0.0001725,2]
[382525130,1756657536767,719.81,0.00017251,2]
[382525131,1756657537067,1481.01,0.00017251,2]
[382525132,1756657537102,480.0,0.00017251,2]
[382525133,1756657538499,480.0,0.00017251,2]
[382525134,1756657541353,480.0,0.00017251,2]
[382525135,1756657541912,480.0,0.00017251,2]
[382525136,1756657541953,480.0,0.00017251,2]
[382525137,1756657543501,480.0,0.00017251,2]
[382525138,1756657545885,723.92,0.00017251,2]
[382525139,1756657546459,1242.27,0.00017251,2]
[382525140,1756657546675,535.79,0.00017251,2]
[382525141,1756657548891,480.0,0.00017251,2]
[382525142,1756657548928,480.0,0.00017251,2]
[382525143,1756657550002,480.0,0.00017251,2]
[382525144,1756657550206,480.0,0.00017251,2]
[382525145,1756657552033,635.13,0.00017251,2]
[382525146,1756657554324,1640.96,0.00017251,2]
[382525147,1756657555960,4985.77,0.00017251,2]
[382525148,1756657557607,500.0,0.00017251,2]
[382525149,1756657557987,480.0,0.00017251,2]
[382525150,1756657559965,324.0913876,0.00017251,2]
[382525151,1756657561346,480.0,0.00017251,2]
[382525152,1756657561582,227.27386968,0.00017251,2]
[382525153,1756657561684,480.0,0.00017251,2]
[382525154,1756657563485,606.92,0.0001725,2]
[382525155,1756657563819,300.0,0.0001725,2]
[382525156,1756657565927,1988.11,0.00017251,2]
[382525157,1756657566599,666.0,0.00016254,2]
[382525158,1756657566707,175.10694815,0.00017251,2]
[382525159,1756657568280,428.70427262,0.00017251,2]
[382525160,1756657571473,624.11,0.00017251,2]
[382525161,1756657573560,650.55,0.00017251,2]
[382525162,1756657574429,574.39,0.00017251,2]
[382525163,1756657576247,1438.4,0.00017251,2]
[382525164,1756657576409,666.76,0.00017251,2]
[382525165,1756657576926,648.66,0.00017251,2]
[382525166,1756657577705,515.67,0.00017251,2]
[382525167,1756657578152,645.68,0.00017251,2]
[382525168,1756657579601,480.0,0.00017251,2]
[382525169,1756657579693,480.0,0.00017251,2]
[382525170,1756657581446,2978.44,0.00017251,2]
[382525171,1756657584277,50000.0,0.00017251,2]
[382525172,1756657584393,979.31,0.00017251,2]
[382525173,1756657584483,622.29,0.00017251,2]
[382525174,1756657585459,548.92,0.00017251,2]
[382525175,1756657586450,480.0,0.00017251,2]
[382525176,1756657588753,572.78,0.00017251,2]
[382525177,1756657588798,598.76,0.00017251,2]
[382525178,1756657589371,703.41,0.00017251,2]
[382525179,1756657591646,508.02,0.00017251,2]
[382525180,1756657592556,473.07113492,0.0001725,2]
[382525181,1756657593915,480.0,0.00017251,2]
[382525182,1756657595821,480.0,0.00017251,2]
[382525183,1756657596798,568.45,0.00017251,2]
[382525184,1756657598674,792.15,0.00017251,2]
[382525185,1756657601137,500.0,0.0001725,2]
[382525186,1756657601173,320.61445798,0.0001725,2]
[382525187,1756657601212,500.0,0.0001725,2]
[382525188,1756657601248,500.0,0.0001725,2]
[382525189,1756657601282,500.0,0.0001725,2]
[382525190,1756657601316,500.0,0.0001725,2]
[382525191,1756657601350,500.0,0.0001725,2]
[382525192,1756657601383,500.0,0.0001725,2]
[382525193,1756657601416,169.41868933,0.0001725,2]
[382525194,1756657601463,500.0,0.0001725,2]
[382525195,1756657601499,500.0,0.0001725,2]
[382525196,1756657601534,500.0,0.0001725,2]
[382525197,1756657601570,500.0,0.0001725,2]
[382525198,1756657601614,1513.75,0.00017251,2]
[382525199,1756657601648,544.26769546,0.0001725,2]
[382525200,1756657601682,241.91024232,0.0001725,2]
[382525201,1756657601723,500.0,0.0001725,2]
[382525202,1756657601764,500.0,0.0001725,2]
[382525203,1756657601823,500.0,0.0001725,2]
[382525204,1756657601856,293.37276402,0.0001725,2]
[382525205,1756657601891,518.78948683,0.0001725,2]
[382525206,1756657601929,500.0,0.0001725,2]
[382525207,1756657601965,500.0,0.0001725,2]
[382525208,1756657602004,500.0,0.0001725,2]
[382525209,1756657602043,500.0,0.0001725,2]
[382525210,1756657602082,500.0,0.0001725,2]
[382525211,1756657602129,500.0,0.0001725,2]
[382525212,1756657602164,500.0,0.0001725,2]
[382525213,1756657602197,500.0,0.0001725,2]
[382525214,1756657602235,500.0,0.0001725,2]
[382525215,1756657602271,500.0,0.0001725,2]
[382525216,1756657602308,500.0,0.0001725,2]
[382525217,1756657602344,500.0,0.0001725,2]
[382525218,1756657602384,500.0,0.0001725,2]
[382525219,1756657602420,500.0,0.0001725,2]
[382525220,1756657602459,500.0,0.0001725,2]
[382525221,1756657602497,500.0,0.0001725,2]
[382525222,1756657602689,500.0,0.0001725,2]
[382525223,1756657602731,500.0,0.0001725,2]
[382525224,1756657602766,500.0,0.0001725,2]
[382525225,1756657602800,500.0,0.0001725,2]
[382525226,1756657602836,500.0,0.0001725,2]
[382525227,1756657602872,500.0,0.0001725,2]
[382525228,1756657602916,398.5,0.0001725,2]
[382525229,1756657602954,592.01526275,0.0001725,2]
[382525230,1756657602994,500.0,0.0001725,2]
[382525231,1756657603031,500.0,0.0001725,2]
[382525232,1756657603071,500.0,0.0001725,2]
[382525233,1756657603147,500.0,0.0001725,2]
[382525234,1756657603196,500.0,0.0001725,2]
[382525235,1756657603263,500.0,0.0001725,2]
[382525236,1756657603299,500.0,0.0001725,2]
[382525237,1756657603347,500.0,0.0001725,2]
[382525238,1756657603381,500.0,0.0001725,2]
[382525239,1756657603420,500.0,0.0001725,2]
[382525240,1756657603465,500.0,0.0001725,2]
[382525241,1756657603506,500.0,0.0001725,2]
[382525242,1756657603544,500.0,0.0001725,2]
[382525243,1756657603587,500.0,0.0001725,2]
[382525244,1756657603628,500.0,0.0001725,2]
[382525245,1756657603664,500.0,0.0001725,2]
[382525246,1756657603703,500.0,0.0001725,2]
[382525247,1756657603740,500.0,0.0001725,2]
[382525248,1756657603780,500.0,0.0001725,2]
[382525249,1756657603818,500.0,0.0001725,2]
[382525250,1756657603858,500.0,0.0001725,2]
[382525251,1756657603897,500.0,0.0001725,2]
[382525252,1756657603956,500.0,0.0001725,2]
[382525253,1756657603992,500.0,0.0001725,2]
[382525254,1756657604043,500.0,0.0001725,2]
[382525255,1756657604088,500.0,0.0001725,2]
[382525256,1756657604135,500.0,0.0001725,2]
[382525257,1756657604173,500.0,0.0001725,2]
[382525258,1756657604220,500.0,0.0001725,2]
[382525259,1756657604266,239.48579112,0.0001725,2]
[382525260,1756657604300,500.0,0.0001725,2]
[382525261,1756657604337,500.0,0.0001725,2]
[382525262,1756657604376,500.0,0.0001725,2]
[382525263,1756657604410,480.0,0.0001725,2]
[382525264,1756657604448,500.0,0.0001725,2]
[382525265,1756657604484,475.55842065,0.0001725,2]
[382525266,1756657604522,500.0,0.0001725,2]
[382525267,1756657604565,500.0,0.0001725,2]
[382525268,1756657604601,500.0,0.0001725,2]
[382525269,1756657604642,500.0,0.0001725,2]
[382525270,1756657604687,500.0,0.0001725,2]
[382525271,1756657604728,500.0,0.0001725,2]
[382525272,1756657604763,500.0,0.0001725,2]
[382525273,1756657604945,500.0,0.0001725,2]
[382525274,1756657604983,500.0,0.0001725,2]
[382525275,1756657605019,500.0,0.0001725,2]
[382525276,1756657605065,500.0,0.0001725,2]
[382525277,1756657605267,500.0,0.0001725,2]
[382525278,1756657605354,500.0,0.0001725,2]
[382525279,1756657605397,500.0,0.0001725,2]
[382525280,1756657605438,500.0,0.0001725,2]
[382525281,1756657605490,500.0,0.0001725,2]
[382525282,1756657605528,500.0,0.0001725,2]
[382525283,1756657605576,500.0,0.0001725,2]
[382525284,1756657605629,480.0,0.00017251,2]
[382525285,1756657605802,480.0,0.00017251,2]
[382525286,1756657607942,480.0,0.00017251,2]
[382525287,1756657609175,1456.93,0.00017251,2]
[382525288,1756657610827,480.0,0.00017251,2]
[382525289,1756657611125,1003.54527382,0.00017251,2]
[382525290,1756657612642,500.0,0.0001725,2]
[382525291,1756657612678,500.0,0.0001725,2]
[382525292,1756657612714,1508.53366616,0.0001725,2]
[382525293,1756657612753,500.0,0.0001725,2]
[382525294,1756657612798,500.0,0.0001725,2]
[382525295,1756657612835,1508.53366616,0.0001725,2]
[382525296,1756657612875,500.0,0.0001725,2]
[382525297,1756657612925,1508.53366616,0.0001725,2]
[382525298,1756657612962,500.0,0.0001725,2]
[382525299,1756657613001,1508.53366616,0.0001725,2]
[382525300,1756657613226,1508.53366616,0.0001725,2]
[382525301,1756657613264,500.0,0.0001725,2]
[382525302,1756657613302,500.0,0.0001725,2]
[382525303,1756657613340,1508.53366616,0.0001725,2]
[382525304,1756657613381,500.0,0.0001725,2]
[382525305,1756657613421,1508.53366616,0.0001725,2]
[382525306,1756657613473,500.0,0.0001725,2]
[382525307,1756657613510,500.0,0.0001725,2]
[382525308,1756657613547,500.0,0.0001725,2]
[382525309,1756657613586,500.0,0.0001725,2]
[382525310,1756657613622,500.0,0.0001725,2]
[382525311,1756657613662,1508.53366616,0.0001725,2]
[382525312,1756657613698,1508.53366616,0.0001725,2]
[382525313,1756657613737,500.0,0.0001725,2]
[382525314,1756657613775,500.0,0.0001725,2]
[382525315,1756657613814,1508.53366616,0.0001725,2]
[382525316,1756657613849,500.0,0.0001725,2]
[382525317,1756657613891,1508.53366616,0.0001725,2]
[382525318,1756657613928,500.0,0.0001725,2]
[382525319,1756657613968,1508.53366616,0.0001725,2]
[382525320,1756657614002,500.0,0.0001725,2]
[382525321,1756657614039,1508.53366616,0.0001725,2]
[382525322,1756657614076,500.0,0.0001725,2]
[382525323,1756657614113,1508.53366616,0.0001725,2]
[382525324,1756657614150,500.0,0.0001725,2]
[382525325,1756657614188,500.0,0.0001725,2]